bitfinex/quotes_SOLUSD_20251125
["timestamp","ask_amount","ask_price","bid_price","bid_amount"]
[1764095664280,10.71630279,137.53,137.48,2.7751391]
[1764095664464,0.66,137.52,137.48,2.7751391]
[1764095665944,7.93172141,137.52,137.49,2.7751391]
[1764095666346,0.66,137.51,137.49,2.7751391]
[1764095666536,3.24,137.5,137.49,2.7751391]
[1764095666935,3.9,137.5,137.48,7.27332402]
[1764095667136,0.66,137.49,137.48,7.27332402]
[1764095668357,0.66,137.49,137.48,10.04846312]
[1764095668562,3.24,137.5,137.48,10.04846312]
[1764095668740,3.24,137.5,137.49,2.7751391]
[1764095669145,3.9,137.5,137.49,2.7751391]
[1764095670165,11.17273449,137.5,137.48,2.7751391]
[1764095670336,0.66,137.49,137.47,2.7751391]
[1764095670733,0.66,137.49,137.46,10.04983051]
[1764095670964,0.66,137.49,137.47,2.7751391]
[1764095671372,0.66,137.49,137.46,2.7751391]
[1764095671373,7.93337289,137.49,137.46,2.7751391]
[1764095671540,7.93337289,137.49,137.45,2.7751391]
[1764095671742,0.66,137.48,137.45,2.7751391]
[1764095672043,0.66,137.48,137.46,2.7751391]
[1764095672763,7.93400616,137.48,137.44,7.27564992]
[1764095673061,0.66,137.48,137.45,2.7751391]
[1764095673269,0.66,137.47,137.45,2.7751391]
[1764095673466,3.24,137.46,137.45,2.7751391]
[1764095673673,3.9,137.46,137.45,2.7751391]
[1764095674767,3.24,137.46,137.45,10.05051196]
[1764095675068,3.24,137.46,137.44,2.7751391]
[1764095675069,3.9,137.46,137.44,2.7751391]
[1764095675261,0.66,137.45,137.44,2.7751391]
[1764095676347,3.24,137.46,137.44,2.7751391]
[1764095676663,7.27346209,137.49,137.45,2.7751391]
[1764095676872,7.27346209,137.49,137.46,2.7751391]
[1764095676873,0.66,137.47,137.46,2.7751391]
[1764095677055,0.66,137.47,137.45,64.5751391]
[1764095678551,0.66,137.47,137.46,2.7751391]
[1764095679278,3.9,137.47,137.46,2.7751391]
[1764095681377,3.9,137.47,137.46,10.04998269]
[1764095681568,0.66,137.48,137.46,10.04998269]
[1764095681773,3.24,137.47,137.46,7.27484359]
[1764095682475,3.24,137.47,137.46,69.07484359]
[1764095682672,3.24,137.5,137.46,87.26195256]
[1764095682976,3.9,137.5,137.48,2.7751391]
[1764095683164,0.66,137.49,137.48,2.7751391]
[1764095685177,0.66,137.49,137.47,10.04920079]
[1764095685358,0.66,137.49,137.47,2.7751391]
[1764095685563,0.66,137.49,137.47,10.04935934]
[1764095686977,0.66,137.49,137.47,2.7751391]
[1764095687284,0.66,137.49,137.46,61.8]
[1764095687285,7.9333036,137.49,137.46,61.8]
[1764095687473,7.9333036,137.49,137.45,64.5751391]
[1764095687783,0.66,137.48,137.45,64.5751391]
[1764095687970,3.24,137.47,137.45,64.5751391]
[1764095688166,3.9,137.47,137.45,64.5751391]
[1764095689175,3.9,137.47,137.46,2.7751391]
[1764095689356,3.9,137.47,137.46,7.27484359]
[1764095689784,3.9,137.47,137.46,10.04998269]
[1764095689978,3.24,137.47,137.46,10.04998269]
[1764095691365,3.24,137.47,137.46,2.7751391]
[1764095691689,3.9,137.47,137.45,71.85026335]
[1764095691895,0.66,137.46,137.45,71.85026335]
[1764095692083,0.66,137.46,137.45,10.05026335]
[1764095693074,3.9,137.47,137.45,10.05026335]
[1764095693272,3.9,137.47,137.46,2.7751391]
[1764095693476,3.24,137.47,137.46,2.7751391]
[1764095693962,3.95,137.47,137.46,2.7751391]
[1764095694592,3.95,137.47,137.45,10.05026335]
[1764095694887,0.71,137.46,137.45,10.05026335]
[1764095695086,3.24,137.47,137.45,10.05026335]
[1764095695275,3.95,137.47,137.45,10.05026335]
[1764095695991,3.95,137.47,137.46,2.7751391]
[1764095697176,3.95,137.47,137.44,2.7751391]
[1764095697374,0.71,137.46,137.44,64.5751391]
[1764095697896,0.71,137.46,137.45,2.7751391]
[1764095698665,3.24,137.47,137.45,10.05037269]
[1764095698865,3.95,137.47,137.45,10.05037269]
[1764095700263,0.71,137.46,137.44,64.5751391]
[1764095700467,0.71,137.46,137.44,2.7751391]
[1764095702203,7.98494268,137.46,137.43,10.05141653]
[1764095702584,0.71,137.45,137.43,10.05141653]
[1764095702807,0.71,137.45,137.44,2.7751391]
[1764095703295,0.71,137.45,137.43,2.7751391]
[1764095703680,0.71,137.45,137.44,2.7751391]
[1764095704598,7.98545517,137.45,137.42,0.1]
[1764095704813,28.94902642,137.45,137.42,0.1]
[1764095704976,0.71,137.44,137.42,0.1]
[1764095705295,3.24,137.43,137.42,0.1]
[1764095705680,3.95,137.43,137.42,0.1]
[1764095706297,11.22643163,137.43,137.42,0.1]
[1764095706594,11.22643163,137.43,137.39,0.1]
[1764095706595,0.71,137.42,137.39,0.1]
[1764095706826,3.4851391,137.42,137.39,0.1]
[1764095707166,0.71,137.41,137.39,0.1]
[1764095707370,3.24,137.4,137.39,0.1]
[1764095707979,3.95,137.4,137.39,0.1]
[1764095708182,3.24,137.4,137.39,2.8751391]
[1764095708684,3.95,137.4,137.39,0.1]
[1764095709089,11.22802037,137.4,137.39,0.1]
[1764095709280,14.00315947,137.4,137.39,0.1]
[1764095709486,14.00315947,137.4,137.38,0.1]
[1764095709681,0.71,137.39,137.38,0.1]
[1764095710378,7.98855011,137.39,137.38,0.1]
[1764095710906,11.22855011,137.39,137.38,0.1]
[1764095712884,7.98855011,137.39,137.38,0.1]
[1764095713083,11.22855011,137.39,137.38,0.1]
[1764095714520,14.00368921,137.39,137.38,0.1]
[1764095714814,11.22855011,137.39,137.38,0.1]
[1764095716103,14.00368921,137.39,137.38,0.1]
[1764095717010,11.22855011,137.39,137.38,0.1]
[1764095717212,3.95,137.39,137.38,0.1]
[1764095717711,27.53741411,137.39,137.38,0.1]
[1764095718288,20.258864,137.39,137.38,0.1]
[1764095718484,27.53741411,137.39,137.38,0.1]
[1764095719812,11.22855011,137.39,137.38,0.1]
[1764095720309,3.95,137.39,137.38,0.1]
[1764095721010,11.22855011,137.39,137.38,0.1]
[1764095722010,15.57544545,137.39,137.38,0.1]
[1764095722184,31.88430945,137.39,137.38,0.1]
[1764095723207,8.80994492,137.38,137.37,0.1]
[1764095723390,16.308864,137.35,137.33,0.1]
[1764095723586,16.39684026,137.34,137.31,0.1]
[1764095723807,20.65575934,137.32,137.31,0.1]
[1764095724203,16.968864,137.32,137.31,0.1]
[1764095725013,24.25112441,137.32,137.31,0.1]
[1764095725217,19.548864,137.32,137.31,0.1]
[1764095725410,3.24,137.32,137.31,0.1]
[1764095726002,0.66,137.34,137.31,0.1]
[1764095726311,0.66,137.37,137.33,4.34689534]
[1764095726515,3.24,137.36,137.33,4.34689534]
[1764095726690,3.24,137.36,137.32,4.34689534]
[1764095726897,3.9,137.36,137.32,4.34689534]
[1764095727307,3.9,137.36,137.32,11.62875792]
[1764095728016,0.66,137.35,137.31,0.1]
[1764095728212,0.66,137.35,137.31,7.3827257]
[1764095728418,0.66,137.35,137.31,11.72962104]
[1764095728907,0.66,137.38,137.34,4.34689534]
[1764095729100,3.24,137.37,137.35,4.34689534]
[1764095729423,3.24,137.37,137.34,4.34689534]
[1764095729726,3.9,137.37,137.34,4.34689534]
[1764095729894,0.66,137.36,137.32,11.62891557]
[1764095731131,0.66,137.36,137.31,73.5294963]
[1764095731132,16.968864,137.36,137.31,73.5294963]
[1764095731334,16.968864,137.36,137.32,4.34689534]
[1764095731631,0.66,137.35,137.32,11.6287954]
[1764095731836,3.24,137.34,137.32,11.6287954]
[1764095733315,3.24,137.34,137.33,4.34689534]
[1764095733718,3.24,137.34,137.32,11.6287954]
[1764095736348,3.9,137.34,137.32,4.34689534]
[1764095736913,0.66,137.33,137.31,7.38264004]
[1764095737212,0.66,137.33,137.31,0.1]
[1764095737941,7.94182847,137.33,137.31,0.1]
[1764095738346,0.66,137.32,137.31,0.1]
[1764095739144,3.24,137.34,137.31,4.44689534]
[1764095739371,3.9,137.34,137.31,4.44689534]
[1764095739733,3.24,137.34,137.31,5.04689534]
[1764095739916,3.24,137.34,137.33,4.34689534]
[1764095740622,3.24,137.35,137.33,4.94689534]
[1764095740828,3.24,137.35,137.34,4.94689534]
[1764095741332,3.24,137.35,137.34,9.29379068]
[1764095742046,3.24,137.35,137.34,16.57499062]
[1764095742937,3.24,137.35,137.34,12.22809528]
[1764095744632,3.24,137.42,137.37,16.308864]
[1764095744835,3.24,137.42,137.4,4.34689534]
[1764095745150,3.9,137.42,137.39,4.34689534]
[1764095745925,3.9,137.42,137.39,11.62499824]
[1764095746123,4.34689534,137.4,137.34,7.28119994]
[1764095746347,4.34689534,137.4,137.34,11.62809528]
[1764095746543,0.66,137.39,137.35,4.34689534]
[1764095746853,3.24,137.38,137.35,4.34689534]
[1764095747457,3.9,137.38,137.34,11.62809528]
[1764095747754,3.9,137.38,137.34,12.22809528]
[1764095748251,10.5191026,137.38,137.34,7.28119994]
[1764095748453,0.66,137.37,137.34,7.28119994]
[1764095748756,3.24,137.38,137.34,7.88119994]
[1764095749057,0.66,137.37,137.34,7.28119994]
[1764095749351,0.66,137.37,137.34,11.62809528]
[1764095750324,3.24,137.38,137.34,12.22809528]
[1764095750527,3.24,137.38,137.35,4.94689534]
[1764095750957,3.9,137.38,137.35,4.34689534]
[1764095751335,3.24,137.38,137.35,4.94689534]
[1764095751544,3.9,137.38,137.35,4.34689534]
[1764095751734,3.24,137.38,137.35,4.94689534]
[1764095752357,3.9,137.38,137.35,4.34689534]
[1764095752661,3.9,137.38,137.35,11.6270794]
[1764095753762,3.24,137.38,137.35,25.48185861]
[1764095753927,7.27668014,137.43,137.37,4.34689534]
[1764095754131,3.24,137.42,137.39,4.34689534]
[1764095754451,3.91,137.42,137.39,4.34689534]
[1764095754834,3.91,137.42,137.39,11.62503817]
[1764095756328,3.24,137.42,137.38,11.62572523]
[1764095756662,0.67,137.41,137.38,7.27882989]
[1764095757226,0.67,137.41,137.37,7.27938955]
[1764095758046,0.67,137.41,137.37,11.62628489]
[1764095759031,0.67,137.41,137.37,10.75390213]
[1764095759652,7.9475312,137.41,137.37,61.8]
[1764095759848,0.67,137.41,137.37,66.74689534]
[1764095762447,0.67,137.41,137.37,73.42603744]
[1764095763064,7.94754317,137.41,137.37,69.0791421]
[1764095763246,7.94754317,137.41,137.37,73.42603744]
[1764095763559,0.69,137.4,137.37,73.42603744]
[1764095765664,20.65575934,137.38,137.31,7.38266579]
[1764095765841,3.24,137.37,137.32,4.94689534]
[1764095766165,3.93,137.37,137.32,4.94689534]
[1764095766348,0.69,137.36,137.32,4.94689534]
[1764095766731,12.31707739,137.36,137.31,7.38249828]
[1764095766948,4.34689534,137.34,137.31,0.1]
[1764095767235,3.24,137.33,137.31,0.1]
[1764095767567,3.93,137.33,137.31,0.1]
[1764095767739,0.69,137.32,137.31,0.1]
[1764095768756,3.93,137.33,137.31,0.1]
[1764095769865,0.69,137.32,137.31,0.1]
[1764095770840,3.24,137.33,137.31,0.1]
[1764095771035,0.69,137.32,137.31,0.1]
[1764095773261,7.97226041,137.32,137.31,0.1]
[1764095774160,0.69,137.32,137.31,0.1]
[1764095774350,3.24,137.32,137.31,0.1]
[1764095774751,3.93,137.32,137.31,0.1]
[1764095777147,11.21226041,137.32,137.31,0.1]
[1764095778548,15.55915575,137.32,137.31,0.1]
[1764095779453,3.93,137.32,137.31,0.1]
[1764095779768,20.238864,137.32,137.31,0.1]
[1764095780072,27.52112441,137.32,137.31,0.1]
[1764095781663,31.86801975,137.32,137.31,0.1]
[1764095782086,40.67796467,137.32,137.29,1e-08]
[1764095782287,5.03689534,137.31,137.29,1e-08]
[1764095782579,3.47658826,137.31,137.29,1e-08]
[1764095783366,10.75937902,137.31,137.29,1e-08]
[1764095784476,19.56932394,137.31,137.29,1e-08]
[1764095785967,10.75937902,137.31,137.29,1e-08]
[1764095787469,7.97279076,137.31,137.29,1e-08]
[1764095788488,11.21279076,137.31,137.29,1e-08]
[1764095789666,13.99937902,137.31,137.29,1e-08]
[1764095792576,22.80932394,137.31,137.29,1e-08]
[1764095793879,7.28249875,137.32,137.29,1e-08]
[1764095794076,3.24,137.31,137.29,1e-08]
[1764095794880,3.24,137.31,137.29,0.66000001]
[1764095795189,3.24,137.31,137.3,0.76]
[1764095795688,0.7,137.37,137.3,10.82990945]
[1764095795889,0.7,137.37,137.33,2.78658826]
[1764095795890,3.24,137.36,137.33,2.78658826]
[1764095796097,3.24,137.36,137.32,2.78658826]
[1764095796280,3.24,137.36,137.31,3.44658826]
[1764095796486,3.94,137.36,137.32,0.66]
[1764095798984,7.98066982,137.35,137.32,0.66]
[1764095799170,7.98066982,137.35,137.31,2.78658826]
[1764095799503,0.7,137.34,137.3,3.54658826]
[1764095799691,3.24,137.33,137.3,3.54658826]
[1764095800006,3.24,137.33,137.31,3.44658826]
[1764095800374,3.24,137.33,137.32,3.44658826]
[1764095801099,3.24,137.33,137.32,10.72884867]
[1764095801690,3.24,137.33,137.32,7.94226041]
[1764095803601,3.24,137.33,137.32,0.66]
[1764095803783,3.24,137.33,137.32,10.72884867]
[1764095804584,3.24,137.33,137.32,3.44658826]
[1764095804791,3.24,137.33,137.3,72.62969543]
[1764095804987,3.24,137.33,137.3,72.62976541]
[1764095805398,10.5217635,137.33,137.3,61.9]
[1764095805585,3.48658826,137.32,137.3,0.1]
[1764095805899,3.24,137.31,137.3,0.76]
[1764095806092,3.24,137.31,137.3,10.16990945]
[1764095806489,3.24,137.31,137.3,10.82990945]
[1764095807504,3.24,137.31,137.3,8.04332119]
[1764095808304,46.45936886,137.41,137.3,26.25162417]
[1764095808491,2.78658826,137.36,137.3,29.03821243]
[1764095808808,3.24,137.35,137.3,10.82990945]
[1764095808984,3.94,137.35,137.3,10.82990945]
[1764095809184,0.7,137.34,137.3,8.04332119]
[1764095810492,10.52102319,137.35,137.31,0.66]
[1764095810699,11.22102319,137.35,137.31,0.66]
[1764095811208,10.52102319,137.35,137.31,0.66]
[1764095811504,0.7,137.34,137.3,10.16990945]
[1764095811684,7.98131621,137.34,137.3,10.82990945]
[1764095812695,0.7,137.33,137.3,7.38327112]
[1764095815088,3.24,137.32,137.3,7.38327112]
[1764095816410,3.24,137.32,137.3,10.83985938]
[1764095816597,3.24,137.32,137.31,0.67]
[1764095816799,3.24,137.32,137.3,10.16985938]
[1764095817005,3.24,137.32,137.3,10.83985938]
[1764095817206,3.04,137.32,137.3,10.83985938]
[1764095819521,3.04,137.32,137.3,28.37816236]
[1764095819818,3.04,137.32,137.3,29.04816236]
[1764095820793,2.84,137.32,137.31,2.78658826]
[1764095820993,16.308864,137.36,137.31,3.45658826]
[1764095821202,3.24,137.35,137.32,2.78658826]
[1764095821405,3.89,137.35,137.31,61.8]
[1764095821615,0.65,137.34,137.31,61.8]
[1764095822627,0.65,137.34,137.31,69.08268343]
[1764095822924,3.24,137.35,137.31,71.86927169]
[1764095823224,3.24,137.35,137.32,3.45658826]
[1764095823423,3.89,137.35,137.32,0.67]
[1764095823738,11.17083393,137.35,137.31,71.86927169]
[1764095824027,11.17083393,137.35,137.31,72.53927169]
[1764095824196,10.97089293,137.35,137.31,72.53927169]
[1764095824394,0.65,137.34,137.31,69.75268343]
[1764095824735,0.65,137.34,137.31,69.08268343]
[1764095824905,0.65,137.34,137.31,69.75268343]
[1764095825226,3.040059,137.35,137.32,2.78658826]
[1764095825727,3.690059,137.35,137.31,28.9462486]
[1764095825928,0.65,137.34,137.31,7.95268343]
[1764095826420,0.65,137.34,137.31,7.28268343]
[1764095826808,7.93145168,137.34,137.3,69.18308405]
[1764095827020,0.65,137.34,137.3,72.63967231]
[1764095827410,7.93120122,137.34,137.3,72.63967231]
[1764095827725,0.45,137.34,137.3,72.63967231]
[1764095828638,7.73126534,137.34,137.3,72.63967231]
[1764095828839,7.73126534,137.34,137.3,62.57]
[1764095829008,10.0678536,137.34,137.3,61.9]
[1764095829338,7.28126534,137.34,137.3,69.18327256]
[1764095829631,7.28126534,137.34,137.3,61.9]
[1764095829807,0.66,137.33,137.3,61.9]
[1764095830124,16.308864,137.31,137.3,0.1]
[1764095830422,19.09545226,137.31,137.3,0.1]
[1764095830604,19.75545226,137.31,137.3,0.1]
[1764095831128,27.03824302,137.31,137.3,0.1]
[1764095831303,26.83824302,137.31,137.3,0.1]
[1764095832426,24.05165476,137.31,137.3,0.1]
[1764095833326,35.64818794,137.31,137.3,0.1]
[1764095833530,35.64818794,137.31,137.3,1e-08]
[1764095834504,8.80994492,137.3,137.27,1e-08]
[1764095834715,3.24658826,137.28,137.27,1e-08]
[1764095834912,6.03317652,137.28,137.27,1e-08]
[1764095835422,22.12750372,137.28,137.27,1e-08]
[1764095838231,24.12750371,137.28,137.27,1e-08]
[1764095838415,23.92750371,137.28,137.27,1e-08]
[1764095839129,25.11880892,137.26,137.25,0.1]
[1764095839325,11.59653318,137.25,137.22,0.2]
[1764095839525,2.78658826,137.24,137.23,1e-08]
[1764095839831,3.44658826,137.24,137.23,1e-08]
[1764095841236,10.73309365,137.24,137.23,1e-08]
[1764095841415,7.94650539,137.24,137.23,1e-08]
[1764095841731,10.73309365,137.24,137.23,1e-08]
[1764095842727,27.04195765,137.24,137.23,1e-08]
[1764095843438,16.308864,137.24,137.23,0.67000001]
[1764095843734,3.24,137.24,137.23,0.67000001]
[1764095844304,3.24,137.24,137.23,1e-08]
[1764095844731,8.31657588,137.24,137.23,1e-08]
[1764095844934,8.11657588,137.24,137.23,1e-08]
[1764095845237,7.39657588,137.24,137.23,1e-08]
[1764095845536,31.71194527,137.24,137.23,1e-08]
[1764095846807,30.99194527,137.24,137.23,1e-08]
[1764095847025,26.63536939,137.24,137.23,1e-08]
[1764095847231,3.04,137.24,137.23,0.67000001]
[1764095848332,10.12652039,137.24,137.23,1e-08]
[1764095849410,2.840015,137.24,137.23,0.67000001]
[1764095849809,10.12652039,137.24,137.23,1e-08]
[1764095850028,15.20309627,137.24,137.23,1e-08]
[1764095851321,14.48309627,137.24,137.23,1e-08]
[1764095851640,14.28309627,137.24,137.23,1e-08]
[1764095851827,9.92652039,137.24,137.23,1e-08]
[1764095853439,10.64652039,137.24,137.23,1e-08]
[1764095853843,26.95538439,137.24,137.23,1e-08]
[1764095854141,31.31196027,137.24,137.23,1e-08]
[1764095855016,31.11196027,137.24,137.23,1e-08]
[1764095858522,30.91196027,137.24,137.23,1e-08]
[1764095859540,39.72190519,137.24,137.23,1e-08]
[1764095860546,35.36532931,137.24,137.23,1e-08]
[1764095860771,23.41304119,137.24,137.23,1e-08]
[1764095861732,39.72190519,137.24,137.23,1e-08]
[1764095861936,24.31536939,137.24,137.23,1e-08]
[1764095862131,31.19194527,137.24,137.23,1e-08]
[1764095862336,10.52650539,137.24,137.23,1e-08]
[1764095862762,2.92088064,137.29,137.23,1e-08]
[1764095863056,4.35657588,137.27,137.23,0.67000001]
[1764095863647,12.36201956,137.26,137.23,1e-08]
[1764095863847,7.59657588,137.25,137.23,1e-08]
[1764095864050,4.35657588,137.24,137.23,1e-08]
[1764095864247,5.07657588,137.24,137.23,1e-08]
[1764095865671,12.36308127,137.24,137.23,1e-08]
[1764095865967,21.17302619,137.24,137.23,1e-08]
[1764095869560,16.81645031,137.24,137.23,1e-08]
[1764095869775,7.28650539,137.24,137.23,1e-08]
[1764095869946,28.67194527,137.24,137.23,1e-08]
[1764095871660,27.95194527,137.24,137.23,1e-08]
[1764095871858,28.67194527,137.24,137.23,1e-08]
[1764095873549,27.95194527,137.24,137.23,1e-08]
[1764095876369,23.59536939,137.24,137.23,1e-08]
[1764095877460,16.308864,137.24,137.23,1e-08]
[1764095877782,23.59536939,137.24,137.23,1e-08]
[1764095878480,24.29536939,137.24,137.23,1e-08]
[1764095878685,28.65194527,137.24,137.23,1e-08]
[1764095879056,37.46189019,137.24,137.23,1e-08]
[1764095879265,21.15302619,137.24,137.23,1e-08]
[1764095882588,0.72,137.23,137.22,1e-08]
[1764095882766,8.31657588,137.23,137.22,1e-08]
[1764095883378,15.60361224,137.23,137.22,1e-08]
[1764095885978,15.60361224,137.23,137.19,0.2]
[1764095885979,16.308864,137.2,137.19,0.2]
[1764095886160,19.548864,137.2,137.19,0.2]
[1764095886359,23.90543988,137.2,137.19,0.2]
[1764095887380,31.19406961,137.2,137.19,0.2]
[1764095888669,31.91406961,137.2,137.19,0.2]
[1764095888870,45.08059041,137.2,137.19,1e-08]
[1764095889390,63.30216475,137.2,137.17,1e-08]
[1764095889588,63.30216475,137.2,137.09,0.1]
[1764095889589,16.308864,137.15,137.1,0.7]
[1764095889796,4.35657588,137.12,137.1,0.7]
[1764095889962,3.24,137.11,137.1,0.7]
[1764095891690,10.53341404,137.11,137.1,0.7]
[1764095892275,14.88998992,137.11,137.1,0.7]
[1764095892876,14.88998992,137.11,137.09,0.8]
[1764095893081,4.35657588,137.1,137.09,0.1]
[1764095893486,11.6505219,137.1,137.09,0.8]
[1764095893669,11.6505219,137.1,137.09,0.1]
[1764095893870,11.6505219,137.1,137.09,0.8]
[1764095894098,10.53356427,137.11,137.09,0.8]
[1764095894538,14.89014015,137.11,137.09,0.8]
[1764095894676,4.35657588,137.1,137.09,0.8]
[1764095895014,14.89014015,137.11,137.09,0.8]
[1764095895724,3.24,137.1,137.09,0.8]
[1764095896308,7.59657588,137.1,137.09,0.8]
[1764095897189,7.59657588,137.1,137.09,0.1]
[1764095897705,14.8905219,137.1,137.09,0.1]
[1764095898076,14.8905219,137.1,137.09,0.8]
[1764095898292,10.53394602,137.1,137.09,0.8]
[1764095898619,14.8905219,137.1,137.09,0.8]
[1764095900002,14.8905219,137.1,137.09,0.1]
[1764095902030,3.24,137.1,137.09,0.8]
[1764095903422,10.53394602,137.1,137.09,0.8]
[1764095903623,10.53394602,137.1,137.09,0.1]
[1764095903800,14.8905219,137.1,137.09,0.1]
[1764095904399,24.42046682,137.1,137.09,0.1]
[1764095904733,16.308864,137.07,137.02,0.69]
[1764095904915,4.35657588,137.05,137.02,0.69]
[1764095905121,3.24,137.04,137.02,0.69]
[1764095906146,3.24,137.04,137.01,0.69]
[1764095906147,14.89374564,137.04,137.01,0.69]
[1764095906319,4.35657588,137.03,137.01,0.69]
[1764095906521,13.33421382,137.04,137.01,0.69]
[1764095907029,13.33421382,137.04,136.99,0.69]
[1764095907030,2.79704406,137.02,136.99,0.69]
[1764095907232,3.24,137.01,136.99,0.69]
[1764095907945,10.53912347,137.01,136.97,0.69]
[1764095908149,2.79704406,136.98,136.96,0.1]
[1764095908323,6.03704406,136.97,136.96,0.1]
[1764095908715,3.24,136.97,136.96,0.79]
[1764095909044,3.24,136.97,136.96,0.1]
[1764095909230,6.03704406,136.97,136.96,0.1]
[1764095910154,14.05791286,136.97,136.96,0.1]
[1764095910517,13.33791286,136.97,136.96,0.1]
[1764095911021,14.05791286,136.97,136.96,0.1]
[1764095911327,22.86785778,136.97,136.96,0.1]
[1764095913243,16.308864,136.94,136.88,0.69]
[1764095913448,2.79704406,136.91,136.88,0.69]
[1764095913630,3.24,136.9,136.88,0.69]
[1764095913941,10.10024343,136.93,136.88,10.79252896]
[1764095914127,3.24,136.92,136.9,2.79704406]
[1764095914326,3.24,136.92,136.91,0.69]
[1764095914522,3.24,136.92,136.91,3.48704406]
[1764095915546,10.81758193,136.98,136.91,3.48704406]
[1764095915547,3.24,136.93,136.91,3.48704406]
[1764095915720,3.24,136.93,136.92,9.49994492]
[1764095915919,3.24,136.93,136.92,16.80347983]
[1764095916115,3.24,136.93,136.92,19.60052389]
[1764095916515,3.24,136.93,136.92,10.79057897]
[1764095916720,3.24,136.93,136.92,7.99353491]
[1764095917538,3.24,136.93,136.92,10.79057897]
[1764095919645,3.24,136.93,136.92,7.99353491]
[1764095920943,3.24,136.93,136.92,0.69]
[1764095921144,3.24,136.93,136.92,10.79057897]
[1764095921350,3.24,136.93,136.92,7.99353491]
[1764095921523,3.24,136.93,136.9,0.69]
[1764095921726,3.24,136.93,136.91,0.69]
[1764095921937,6.03704406,136.93,136.89,0.69]
[1764095922247,3.24,136.93,136.9,2.79704406]
[1764095922444,3.24,136.93,136.91,7.30406836]
[1764095922620,3.24,136.93,136.91,7.99406836]
[1764095922821,2.79704406,136.97,136.92,0.69]
[1764095923030,22.34590806,136.96,136.92,0.69]
[1764095923337,2.79704406,136.94,136.9,7.9945728]
[1764095923526,2.79704406,136.94,136.9,0.69]
[1764095923732,3.51704406,136.94,136.9,0.69]
[1764095924570,2.79704406,136.91,136.87,7.30600958]
[1764095924851,3.24,136.9,136.88,3.48704406]
[1764095925055,0.72,137.03,136.91,8.80994492]
[1764095925250,0.86,137.02,136.94,16.308864]
[1764095925436,2.79704406,137.0,136.94,19.10590806]
[1764095925637,2.79704406,136.99,136.95,0.69]
[1764095925947,6.03704406,136.98,136.95,0.69]
[1764095927249,16.308864,137.01,136.95,10.78894636]
[1764095927421,3.24,137.0,136.96,2.79704406]
[1764095927620,3.24,137.0,136.96,3.48704406]
[1764095927819,3.24,137.0,136.97,3.48704406]
[1764095928757,3.24,137.0,136.97,14.65216154]
[1764095929049,3.24,136.99,136.98,7.35166191]
[1764095929360,3.24,136.99,136.98,6.66166191]
[1764095929727,3.24,136.99,136.97,0.69]
[1764095929946,3.24,136.99,136.98,0.69]
[1764095930319,3.24,136.99,136.97,6.66166191]
[1764095930962,3.24,136.99,136.96,7.99126996]
[1764095931129,3.24,136.99,136.97,6.66166191]
[1764095931550,3.24,136.99,136.96,0.69]
[1764095931750,3.24,136.99,136.96,7.35166191]
[1764095932251,3.24,136.99,136.96,14.65296741]
[1764095933032,10.53984087,136.99,136.96,7.35166191]
[1764095933238,3.96,136.99,136.96,7.30137979]
[1764095933634,0.72,136.98,136.95,7.30171705]
[1764095933835,3.24,136.99,136.95,6.66166191]
[1764095934047,3.24,136.99,136.94,7.30226055]
[1764095934048,3.24,136.99,136.96,7.33166191]
[1764095934239,3.96,136.99,136.96,6.66166191]
[1764095934751,3.96,136.99,136.95,0.67]